bitfinex-derivatives/quotes_ETHF0:USTF0_20250530
["timestamp","ask_amount","ask_price","bid_price","bid_amount"]
[1748625074317,2.4668,2556.7,2556.6,0.7880005]
[1748625074717,3.7575,2556.7,2556.6,0.7880005]
[1748625074923,4.5396,2556.7,2556.6,0.7880005]
[1748625075638,3.7575,2556.7,2556.6,0.7880005]
[1748625076338,2.4668,2556.7,2556.6,0.7880005]
[1748625076533,1.2032,2556.7,2556.6,0.7880005]
[1748625078434,1.2032,2556.7,2556.6,5.6630005]
[1748625079439,4.55289418,2556.9,2556.8,0.78207]
[1748625079835,4.55289418,2556.9,2556.7,4.4913]
[1748625079836,0.78207,2556.8,2556.7,4.4913]
[1748625080132,0.78207,2556.8,2556.7,3.2078]
[1748625080537,7.87825418,2556.9,2556.8,0.78207]
[1748625080734,7.09619418,2556.9,2556.7,3.2078]
[1748625080936,7.09619418,2556.9,2556.7,3.98988]
[1748625081136,7.87825418,2556.9,2556.8,0.78207]
[1748625081832,5.82529418,2556.9,2556.6,0.0058705]
[1748625082034,0.7821,2556.7,2556.6,0.0058705]
[1748625082536,6.8972,2556.7,2556.6,0.0058705]
[1748625082732,1.8972,2556.7,2556.6,0.0058705]
[1748625084039,1.96713857,2556.7,2556.6,0.0058705]
[1748625084843,1.18503857,2556.7,2556.6,0.7880005]
[1748625085340,1.96713857,2556.7,2556.6,0.7880005]
[1748625086037,1.8972,2556.7,2556.6,0.7880005]
[1748625086237,1.1151,2556.7,2556.6,0.7880005]
[1748625086640,6.60733418,2556.9,2556.8,0.78207]
[1748625086840,5.82529418,2556.9,2556.8,0.78207]
[1748625087234,1.2724,2556.9,2556.8,0.78207]
[1748625087636,3.2413705,2557.1,2557.0,0.78201]
[1748625087938,2.4593705,2557.1,2556.9,0.78203]
[1748625088135,0.78201,2557.0,2556.9,0.78203]
[1748625088330,3.2413805,2557.1,2556.9,0.78203]
[1748625088540,1.1196705,2557.1,2557.0,0.78201]
[1748625088837,0.0058705,2557.1,2557.0,5.65701]
[1748625089036,0.7878505,2557.1,2557.0,4.875]
[1748625089342,1.2854705,2557.1,2557.0,4.875]
[1748625089542,2.0674505,2557.1,2557.0,4.875]
[1748625090343,1.2854705,2557.1,2557.0,5.65701]
[1748625090737,2.0674505,2557.1,2557.0,4.875]
[1748625091133,0.78204,2556.9,2556.8,0.78207]
[1748625091339,0.78204,2556.9,2556.8,5.65607]
[1748625091740,0.78204,2556.9,2556.8,4.874]
[1748625092050,0.78204,2556.9,2556.8,0.78207]
[1748625092435,3.2404405,2557.1,2556.7,3.2078]
[1748625092436,0.78207,2556.8,2556.7,3.2078]
[1748625092747,0.7821,2556.7,2556.6,0.0058705]
[1748625093040,1.9737,2556.7,2556.6,0.0058705]
[1748625093240,3.2309,2556.7,2556.6,0.0058705]
[1748625094049,0.78228,2556.2,2556.1,4.874]
[1748625094747,3.28168,2556.2,2555.8,0.78237]
[1748625094947,0.7823,2556.1,2555.7,6.8358605]
[1748625095148,1.3069,2556.1,2556.0,0.78229]
[1748625095348,2.08918,2556.1,2556.0,0.78229]
[1748625095648,0.78238,2555.9,2555.8,0.78236]
[1748625095848,1.3069,2556.1,2555.7,4.8798705]
[1748625095849,0.78238,2555.8,2555.7,4.8798705]
[1748625096049,3.29378,2555.8,2555.7,5.6622805]
[1748625096747,3.29378,2555.8,2555.7,0.0058705]
[1748625096950,8.29378,2555.8,2555.7,0.0058705]
[1748625097152,0.7825,2555.4,2555.3,4.875]
[1748625097547,0.7825,2555.4,2555.0,4.435]
[1748625097548,0.78259,2555.2,2555.1,0.78258]
[1748625097847,4.4594,2555.3,2554.9,8.75768047]
[1748625098149,0.78262,2555.0,2554.9,4.875]
[1748625098347,0.78265,2555.0,2554.9,4.875]
[1748625098547,2.03425,2555.0,2554.9,4.875]
[1748625098747,1.87959,2555.1,2555.0,0.78262]
[1748625098943,0.78262,2555.0,2554.9,5.65762]
[1748625099148,3.1312,2555.1,2555.0,0.78262]
[1748625099756,0.0058705,2555.4,2555.3,0.78253]
[1748625100745,0.0058705,2555.4,2555.3,8.99033]
[1748625101052,0.0058705,2555.4,2555.3,10.30463]
[1748625101449,0.0058705,2555.4,2555.3,15.18063]
[1748625101953,0.0058705,2555.4,2555.3,10.18063]
[1748625102266,0.7883905,2555.4,2555.2,0.78253]
[1748625102460,0.7883905,2555.4,2555.2,2.09683]
[1748625102749,0.78253,2555.3,2555.2,1.3143]
[1748625103051,0.78256,2555.2,2555.1,4.876]
[1748625103257,0.78254,2555.3,2555.1,4.876]
[1748625103453,0.7883905,2555.4,2555.3,0.78253]
[1748625103651,0.78253,2555.3,2555.2,2.03254]
[1748625103853,0.78253,2555.3,2555.2,1.25]
[1748625104352,0.7883905,2555.4,2555.2,2.03256]
[1748625104550,0.78253,2555.3,2555.2,2.03254]
[1748625104751,0.78253,2555.3,2555.2,1.25]
[1748625104956,0.78262,2555.0,2554.9,8.0838]
[1748625105752,0.78262,2555.0,2554.9,8.86645]
[1748625105953,0.78261,2555.1,2554.9,8.86645]
[1748625106258,0.78262,2555.0,2554.9,8.0838]
[1748625106550,0.78262,2555.0,2554.9,8.86645]
[1748625106751,1.97042,2555.1,2555.0,0.78262]
[1748625106952,0.78262,2555.0,2554.9,8.86643]
[1748625107557,0.78262,2555.0,2554.9,8.0838]
[1748625107858,1.3167,2555.0,2554.9,8.0838]
[1748625108054,0.78262,2555.0,2554.9,8.86645]
[1748625108454,1.1878,2555.1,2555.0,0.78262]
[1748625108652,4.55289418,2555.3,2555.2,0.78256]
[1748625109363,0.78256,2555.2,2555.1,2.08317]
[1748625109560,0.78256,2555.2,2555.1,6.92517]
[1748625109860,0.78256,2555.2,2555.1,6.1426]
[1748625110157,0.78256,2555.2,2555.1,4.842]
[1748625110355,2.10226,2555.2,2555.1,4.842]
[1748625110556,0.78259,2555.1,2555.0,0.7826]
[1748625110757,0.78262,2555.0,2554.9,8.83245]
[1748625111258,0.97822,2555.0,2554.9,8.83245]
[1748625111457,0.97822,2555.0,2554.9,3.99045]
[1748625111658,0.97822,2555.0,2554.9,8.83245]
[1748625112156,0.97822,2555.0,2554.9,3.2078]
[1748625113064,0.78265,2554.9,2554.8,0.0058705]
[1748625113361,3.08135,2554.9,2554.8,0.0058705]
[1748625117064,3.08135,2554.9,2554.8,0.7885505]
[1748625117265,3.08135,2554.9,2554.8,0.0058705]
[1748625119356,4.74849418,2555.0,2554.9,0.78265]
[1748625119565,5.53111418,2555.0,2554.9,0.78265]
[1748625119767,4.74849418,2555.0,2554.9,2.08185]
[1748625120066,0.1956,2555.0,2554.9,5.28965]
[1748625121072,0.1956,2555.0,2554.9,10.28965]
[1748625121569,0.0058705,2555.4,2555.3,0.78253]
[1748625121766,0.0058705,2555.4,2555.3,8.83333]
[1748625121972,9.862,2556.5,2555.3,8.83333]
[1748625121973,9.71629418,2556.3,2555.5,1.95616]
[1748625122270,0.78236,2555.9,2555.8,0.78237]
[1748625122462,0.78236,2555.9,2555.8,4.843]
[1748625124065,1.2325705,2556.1,2555.8,5.62535]
[1748625124270,0.78232,2556.0,2555.8,5.62535]
[1748625124675,0.7881605,2556.1,2555.9,0.78232]
[1748625124974,0.78231,2556.0,2555.9,1.2687]
[1748625125376,0.78231,2556.0,2555.9,0.78235]
[1748625125772,0.78235,2555.9,2555.8,4.843]
[1748625126070,0.78241,2555.7,2555.6,1.2687]
[1748625126373,0.78241,2555.7,2555.6,4.842]
[1748625126877,3.16821,2555.7,2555.6,4.842]
[1748625127578,3.16821,2555.7,2555.6,5.62444]
[1748625128671,3.16821,2555.7,2555.6,4.842]
[1748625129475,6.37601,2555.7,2555.6,4.842]
[1748625129682,0.78257,2555.3,2555.2,5.62454]
[1748625129878,0.78257,2555.3,2555.2,4.842]
[1748625130074,0.78259,2555.1,2555.0,39.451]
[1748625130279,0.78259,2555.1,2555.0,4.842]
[1748625130481,0.78265,2554.9,2554.8,0.0058705]
[1748625131081,1.84115,2554.9,2554.8,0.0058705]
[1748625132379,3.2078,2555.1,2554.8,0.0058705]
[1748625132578,4.55289418,2555.4,2555.3,0.78253]
[1748625132782,4.55289418,2555.4,2555.2,5.62554]
[1748625132982,0.78259,2555.2,2555.1,0.78256]
[1748625133181,0.78259,2555.2,2555.1,4.843]
[1748625134192,0.78259,2555.2,2555.1,5.62559]
[1748625134397,0.78261,2555.1,2555.0,0.78259]
[1748625134691,0.78258,2555.2,2555.1,0.78258]
[1748625134991,0.78259,2555.1,2555.0,6.1372]
[1748625135189,1.95635,2555.3,2555.0,4.843]
[1748625135389,2.08568,2555.2,2555.0,4.843]
[1748625135588,0.78254,2555.3,2555.2,0.78255]
[1748625135990,0.78256,2555.2,2555.1,2.07677]
[1748625136383,4.55289418,2555.4,2555.1,1.2942]
[1748625136591,1.0585,2555.7,2555.1,6.45847]
[1748625136891,0.78247,2555.5,2555.4,3.99029]
[1748625137097,0.78247,2555.5,2555.4,8.83329]
[1748625137290,0.78247,2555.5,2555.4,3.2078]
[1748625137587,0.78247,2555.5,2555.4,8.0508]
[1748625137991,0.78247,2555.5,2555.4,4.843]
[1748625138389,0.78247,2555.5,2555.4,5.6255]
[1748625138689,0.78247,2555.5,2555.4,4.843]
[1748625139092,3.99027,2555.5,2555.4,4.843]
[1748625139292,0.78259,2555.1,2555.0,1.345]
[1748625139596,0.78258,2555.2,2555.1,0.78256]
[1748625139991,0.78262,2555.0,2554.9,3.2078]
[1748625141197,4.2771,2555.3,2554.9,3.2078]
[1748625141496,0.78258,2555.2,2555.1,0.78256]
[1748625141692,0.78262,2555.1,2555.0,0.7826]
[1748625141993,0.78262,2555.0,2554.9,3.2078]
[1748625142493,0.78262,2555.0,2554.9,3.99044]
[1748625142693,0.78262,2555.0,2554.9,3.2078]
[1748625142894,0.78265,2554.9,2554.8,0.0058705]
[1748625143096,3.11425,2554.9,2554.8,0.0058705]
[1748625143396,6.32205,2554.9,2554.8,0.0058705]
[1748625143596,3.11425,2554.9,2554.8,0.0058705]
[1748625143796,2.3316,2554.9,2554.8,0.7885505]
[1748625144390,7.76069418,2555.2,2555.0,0.78259]
[1748625144596,10.09229418,2555.2,2555.1,0.78259]
[1748625144892,8.82859418,2555.2,2555.1,0.78259]
[1748625145392,9.61115418,2555.2,2555.1,0.78259]
[1748625145597,8.82859418,2555.2,2555.1,0.78259]
[1748625145797,8.82859418,2555.2,2555.0,0.78261]
[1748625145986,8.82859418,2555.2,2554.9,6.0807]
[1748625146193,10.09209418,2555.2,2554.9,6.0807]
[1748625146392,3.2078,2555.2,2555.1,0.78259]
[1748625146593,1.85186,2555.3,2555.2,0.78256]
[1748625146900,0.78264,2555.0,2554.9,0.78263]
[1748625147098,0.78263,2555.0,2554.9,0.78263]
[1748625147299,0.78261,2555.1,2555.0,0.78261]
[1748625147792,1.2635,2555.2,2554.9,1.2654]
[1748625147999,0.7826,2555.1,2555.0,0.7826]
[1748625148301,0.78262,2555.0,2554.9,2.04803]
[1748625148604,0.78261,2555.1,2555.0,0.7826]
[1748625148902,0.78261,2555.1,2554.9,2.04803]
[1748625149097,1.2635,2555.2,2555.0,3.2078]
[1748625149297,0.78258,2555.2,2555.1,0.78259]
[1748625149601,0.78255,2555.3,2555.2,0.78255]
[1748625150203,0.78252,2555.4,2555.3,0.78252]
[1748625150498,1.85109,2555.5,2555.4,0.7825]
[1748625150904,4.55289418,2555.7,2555.6,0.78244]
[1748625151201,3.2078,2555.9,2555.8,0.78236]
[1748625151202,0.78238,2555.9,2555.8,0.78236]
[1748625151405,1.83854,2556.0,2555.9,0.78235]
[1748625151595,0.78237,2555.9,2555.8,0.78236]
[1748625151797,2.4121,2556.0,2555.7,4.808]
[1748625151999,2.4121,2556.0,2555.7,6.1211]
[1748625152611,5.6199,2556.0,2555.3,4.808]
[1748625152906,0.7825,2555.4,2555.3,5.59053]
[1748625153904,2.006,2555.4,2555.3,0.78253]
[1748625154108,1.91169,2555.5,2555.4,0.7825]
[1748625154394,3.91126,2556.3,2555.4,0.7825]
[1748625154395,5.0710705,2556.1,2556.0,0.78232]
[1748625154604,4.2887705,2556.1,2556.0,0.78232]
[1748625154808,5.0710605,2556.1,2556.0,0.78232]
[1748625155100,0.0058705,2556.1,2556.0,3.99012]
[1748625155999,0.0058705,2556.1,2556.0,0.78232]
[1748625156403,0.7881605,2556.1,2556.0,0.78232]
[1748625156702,0.7881605,2556.1,2556.0,4.808]
[1748625157304,0.78232,2556.0,2555.9,2.01774]
[1748625157497,0.78232,2556.0,2555.9,4.808]
[1748625157796,1.2765,2556.0,2555.8,4.808]
[1748625158001,0.78235,2555.9,2555.8,5.59038]
[1748625158504,0.78235,2555.9,2555.8,4.808]
[1748625158704,1.89515,2555.9,2555.8,4.808]
[1748625159002,0.78238,2555.8,2555.7,0.78241]
[1748625159297,1.3017,2555.8,2555.7,0.78241]
[1748625159701,1.1128,2555.9,2555.4,3.2078]
[1748625159901,0.78246,2555.6,2555.5,0.78244]
[1748625160598,2.0841,2555.8,2555.7,0.78241]
[1748625160794,0.78244,2555.7,2555.6,0.78242]
[1748625161904,2.08409,2555.8,2555.7,0.78241]
[1748625162093,2.08408,2555.8,2555.7,0.78241]
[1748625162402,2.08408,2555.8,2555.5,1.95617]
[1748625162403,0.78243,2555.7,2555.6,0.78241]
[1748625162601,5.16383,2555.7,2555.1,3.2078]
[1748625162804,0.78253,2555.4,2555.3,0.78251]
[1748625163100,1.1232,2555.6,2555.5,0.78247]
[1748625163299,2.3555,2555.9,2555.8,0.78238]
[1748625163503,1.1128,2555.9,2555.8,0.78238]
[1748625163893,1.1128,2555.9,2555.7,5.58939]
[1748625164101,0.78244,2555.6,2555.5,1.2408]
[1748625164398,0.78247,2555.5,2555.4,8.0148]
[1748625164599,1.3333,2555.5,2555.4,8.7973]
[1748625164796,1.1128,2555.9,2555.4,8.0148]
[1748625164994,0.78244,2555.7,2555.6,0.78242]
[1748625165199,0.78247,2555.5,2555.4,3.2078]
[1748625165804,1.83547,2555.5,2555.4,3.9903]
[1748625166401,1.053,2555.5,2555.4,3.9903]
[1748625167705,1.83547,2555.5,2555.4,3.2078]
[1748625167916,0.78255,2555.3,2555.2,0.78253]
[1748625168108,0.78252,2555.4,2555.3,0.78251]
[1748625168308,2.3876,2555.5,2555.4,0.7825]
[1748625168616,1.053,2555.5,2555.4,0.7825]
[1748625168808,1.83547,2555.5,2555.4,0.7825]
[1748625170108,1.053,2555.5,2555.4,0.7825]
[1748625170314,1.3346,2555.8,2555.6,0.78241]
[1748625170514,0.78242,2555.7,2555.6,0.78241]
[1748625170716,2.117,2555.8,2555.7,0.78241]
[1748625171109,0.78242,2555.7,2555.6,0.78242]
[1748625171815,0.78245,2555.6,2555.5,0.78245]
[1748625172014,0.78243,2555.7,2555.6,0.78243]
[1748625172211,1.3346,2555.8,2555.7,0.78241]
[1748625172416,0.0058705,2556.1,2556.0,0.78232]
[1748625173916,0.0058705,2556.1,2556.0,3.99012]
[1748625174118,0.7881605,2556.1,2556.0,3.99012]
[1748625174308,0.7881605,2556.1,2556.0,3.2078]
[1748625174508,2.0256605,2556.1,2556.0,3.2078]
[1748625174708,2.0256605,2556.1,2556.0,7.9808]
[1748625175018,2.0256605,2556.1,2556.0,8.76312]
[1748625175215,2.0256605,2556.1,2556.0,3.2078]
[1748625175416,2.0256605,2556.1,2556.0,7.9808]
[1748625175718,2.0256605,2556.1,2556.0,8.76312]
[1748625175921,2.0256605,2556.1,2556.0,7.9808]
[1748625176418,2.0256605,2556.1,2556.0,3.99012]
[1748625179615,2.0256605,2556.1,2556.0,3.2078]
[1748625180317,2.0256605,2556.1,2555.9,4.773]
[1748625180318,0.78232,2556.0,2555.9,4.773]
[1748625180517,3.08972,2556.0,2555.9,4.773]
[1748625180813,0.78247,2555.5,2555.4,7.9808]
[1748625181018,0.78247,2555.5,2555.4,8.7633]
[1748625181324,0.78247,2555.5,2555.4,7.9808]
[1748625181917,1.82617,2555.5,2555.4,7.9808]
[1748625182221,1.82617,2555.5,2555.4,8.7633]
[1748625182612,1.82617,2555.5,2554.9,5.83927047]
[1748625182613,1.95641,2555.2,2554.9,3.88268047]
[1748625182820,0.78272,2554.7,2554.6,0.78273]
[1748625183114,3.2078,2555.0,2554.1,5.16502]
[1748625183316,0.78271,2554.8,2554.3,4.773]
[1748625183612,0.78268,2554.8,2554.7,0.78269]
[1748625183922,0.78272,2554.7,2554.6,0.78273]
[1748625184124,0.78272,2554.7,2554.6,2.12823]
[1748625184328,0.78271,2554.8,2554.6,1.3455]
[1748625184521,0.78271,2554.8,2554.6,2.12823]
[1748625184826,0.78271,2554.8,2554.7,0.78271]
[1748625185015,3.2136705,2555.0,2554.6,1.3455]
[1748625185212,3.2136705,2555.0,2554.9,0.78265]
[1748625185922,3.2136705,2555.0,2554.9,2.10095]
[1748625186220,3.9962905,2555.0,2554.9,1.3183]
[1748625187015,0.7884905,2555.0,2554.9,1.3183]
[1748625187312,0.7884905,2555.0,2554.5,0.0058705]
[1748625187313,3.2136705,2555.0,2554.6,4.773]
[1748625187515,0.78271,2554.7,2554.6,6.0913]
[1748625188322,1.95706,2554.4,2553.9,0.78293]
[1748625188525,0.78296,2554.0,2553.7,1.3183]
[1748625188725,3.2078,2553.9,2553.7,1.3183]
[1748625188929,5.16501,2554.2,2553.7,2.10129]
[1748625189227,2.08002,2554.1,2554.0,0.78293]
[1748625189424,3.99068,2554.2,2554.1,0.7829]
[1748625189920,3.2078,2554.2,2554.1,0.7829]
[1748625190223,1.79537,2554.3,2554.1,0.7829]
[1748625190427,1.0125,2554.3,2554.2,0.78287]
[1748625190827,4.5049,2554.5,2554.3,0.78282]
[1748625191027,0.78284,2554.4,2554.2,0.78284]
[1748625191323,2.07994,2554.4,2554.3,0.78284]
[1748625191519,1.2971,2554.4,2554.3,0.78284]
[1748625191724,3.2078,2554.5,2554.4,0.78281]
[1748625192228,0.78281,2554.4,2554.3,0.78281]
[1748625192625,0.78284,2554.3,2554.2,3.03836]
[1748625192821,0.78283,2554.4,2554.3,0.78282]
[1748625193831,3.2078,2554.5,2554.4,0.78281]
[1748625194929,3.99058,2554.5,2554.4,0.78281]
[1748625195232,3.2078,2554.5,2554.4,0.78281]
[1748625195828,3.2078,2554.5,2554.4,2.11051]
[1748625196933,1.79521,2554.7,2554.6,0.78275]
[1748625198132,2.9693,2554.7,2554.3,4.775]
[1748625198429,0.78281,2554.4,2554.3,4.775]
[1748625199332,10.16929418,2554.6,2554.5,0.78278]
[1748625199528,10.16929418,2554.6,2554.0,1.2423]
[1748625199735,0.78287,2554.2,2554.1,4.743]
[1748625199928,0.78287,2554.2,2554.1,5.5259]
[1748625200232,0.78287,2554.2,2554.1,0.7829]
[1748625200533,0.78289,2554.2,2554.1,0.78287]
[1748625200738,0.78289,2554.2,2554.0,5.9853]
[1748625201031,0.7829,2554.1,2554.0,4.743]
[1748625201341,0.78299,2553.9,2553.8,0.78297]
[1748625202035,1.86085,2554.0,2553.9,0.78296]
[1748625202336,1.86083,2554.0,2553.9,0.78296]
[1748625202837,1.95765,2553.6,2552.8,3.88819195]
[1748625203036,3.2078,2553.2,2553.1,0.78319]
[1748625203536,3.2078,2553.2,2553.1,5.52619]
[1748625203733,0.0058705,2553.4,2553.3,0.78315]
[1748625204441,0.0058705,2553.4,2553.3,5.78315]
[1748625204641,0.0058705,2553.4,2553.3,0.78315]
[1748625205935,0.0058705,2553.4,2553.2,0.9979]
[1748625205936,0.0058705,2553.4,2553.2,1.78106]
[1748625206130,0.0058705,2553.4,2553.3,5.52715]
[1748625206331,0.7889805,2553.4,2552.8,39.466]
[1748625206535,0.78315,2553.3,2553.1,0.78319]
[1748625206743,0.78315,2553.3,2552.9,5.52727]
[1748625206744,1.2775,2553.3,2552.9,5.52727]
[1748625207036,0.78324,2553.0,2552.9,4.744]
[1748625208336,1.2258,2553.1,2553.0,0.78324]
[1748625208639,0.78324,2553.0,2552.9,5.52726]
[1748625208940,0.78322,2553.1,2552.9,4.744]
[1748625209130,2.2227,2553.2,2552.9,5.52725]
[1748625209329,2.2227,2553.2,2553.0,0.78324]
[1748625209532,0.78322,2553.1,2552.9,5.52726]
[1748625209735,1.2258,2553.1,2552.9,4.744]
[1748625209939,1.2258,2553.1,2553.0,0.78324]
[1748625210138,9.4336,2553.1,2551.6,3.2078]
[1748625210343,3.2078,2552.4,2551.6,4.267]
[1748625210643,1.2593,2552.3,2552.2,0.78348]
[1748625210943,2.04275,2552.3,2552.1,4.745]
[1748625211236,1.2593,2552.3,2552.1,4.745]
[1748625211435,3.2078,2552.4,2552.3,0.78345]
[1748625211746,6.6107,2552.7,2552.1,4.745]
[1748625211935,3.4029,2552.7,2552.5,0.78337]
[1748625212238,4.18623,2552.7,2552.6,4.745]
[1748625212434,3.4029,2552.7,2552.6,4.745]
[1748625212630,3.4029,2552.7,2552.6,5.52836]
[1748625212835,3.2078,2553.0,2552.6,4.745]
[1748625213036,0.78328,2552.9,2552.7,0.78331]
[1748625213336,0.7833,2552.8,2552.7,0.78331]
[1748625213536,0.7833,2552.8,2552.6,5.52835]
[1748625213731,0.78333,2552.7,2552.6,5.52835]
[1748625213948,1.2928,2552.9,2552.6,4.745]
[1748625214240,3.2078,2553.0,2552.9,0.78327]
[1748625214630,0.78321,2553.1,2552.6,4.745]
[1748625214838,3.3954,2553.3,2552.9,0.78325]
[1748625215042,3.3954,2553.3,2552.8,0.78328]
[1748625215242,3.2078,2553.1,2552.7,4.745]
[1748625215444,0.78327,2552.9,2552.8,4.745]
[1748625215944,2.07607,2552.9,2552.8,4.745]
[1748625216137,0.78335,2552.7,2552.5,0.78337]
[1748625216341,0.78333,2552.7,2552.6,4.745]
[1748625216544,3.99113,2552.7,2552.6,4.745]
[1748625216744,0.78336,2552.6,2552.5,4.745]
[1748625216934,2.07586,2552.6,2552.5,4.745]
[1748625217145,3.99114,2552.7,2552.5,5.52837]
[1748625217645,0.78336,2552.6,2552.5,5.52837]
[1748625218006,3.99115,2552.7,2552.6,0.78336]
[1748625218162,3.2078,2552.7,2552.6,0.78336]
[1748625218445,0.78324,2553.0,2552.9,0.78325]
[1748625218646,2.3244,2553.1,2552.6,1.3086]
[1748625218647,0.78328,2552.9,2552.8,0.78329]
[1748625218846,0.78328,2552.9,2552.7,0.78331]
[1748625219036,2.3244,2553.1,2552.6,3.4471]
[1748625219441,1.9581,2553.0,2552.6,1.0618]
[1748625219638,0.7833,2552.8,2552.7,4.746]
[1748625219847,3.2078,2552.9,2552.8,0.7833]
[1748625220046,3.2078,2552.9,2552.7,4.746]
[1748625220047,0.78324,2553.0,2552.9,0.78327]
[1748625220251,3.2078,2553.2,2552.8,1.267]
[1748625220451,0.78327,2552.9,2552.8,2.05029]
[1748625220754,0.78326,2553.0,2552.9,0.78326]
[1748625221149,0.78322,2553.1,2553.0,0.78324]
[1748625221444,3.2078,2553.2,2552.8,1.267]
[1748625221645,0.78325,2553.0,2552.9,0.78325]
[1748625221846,3.991,2553.2,2553.1,0.78321]
[1748625222047,0.78323,2553.1,2553.0,0.78322]
[1748625222544,4.5523,2553.2,2552.8,1.267]
[1748625222744,0.78323,2553.1,2552.8,1.267]
[1748625222945,3.2078,2553.2,2553.1,0.78321]
[1748625223145,0.78318,2553.2,2553.1,0.78321]
[1748625223453,0.78318,2553.2,2553.1,0.78318]
[1748625223946,0.0058705,2553.4,2552.8,1.267]
[1748625224248,0.78316,2553.3,2553.2,0.78316]
[1748625224552,0.78316,2553.3,2553.2,4.746]
[1748625224967,2.1335005,2553.4,2553.3,0.78315]
[1748625225161,2.1335005,2553.4,2553.2,4.746]
[1748625225162,0.78315,2553.3,2553.2,5.52916]
[1748625225665,0.78315,2553.3,2553.2,4.746]
[1748625225969,2.1335005,2553.4,2553.2,4.746]
[1748625226263,2.1335005,2553.4,2553.3,0.78315]
[1748625226456,0.0058705,2553.4,2553.3,0.78315]
[1748625226661,0.0058705,2553.4,2553.3,2.06195]
[1748625226866,0.0058705,2553.4,2553.3,3.13255]
[1748625228572,0.0058705,2553.4,2553.3,5.52915]
[1748625229277,0.0058705,2553.4,2553.3,6.80355]
[1748625231671,0.0058705,2553.4,2553.3,6.77255]
[1748625232673,0.0058705,2553.4,2553.3,2.05755]
[1748625232868,0.0058705,2553.4,2553.3,5.49815]
[1748625233472,0.0058705,2553.4,2553.3,6.73365]
[1748625234472,0.0058705,2553.4,2553.3,5.9505]
[1748625234678,0.0058705,2553.4,2553.3,5.49815]
[1748625235269,0.0058705,2553.4,2553.3,4.715]
[1748625235474,1.3239705,2553.4,2553.3,5.49815]
[1748625236373,2.1070805,2553.4,2553.3,4.715]
[1748625236668,1.3239705,2553.4,2553.3,5.49815]
[1748625237568,2.1070805,2553.4,2553.3,5.49815]
[1748625237776,2.1070805,2553.4,2553.3,4.715]
[1748625238279,0.78315,2553.3,2553.2,4.715]
[1748625238480,2.13435,2553.3,2553.2,4.715]
[1748625238880,1.3512,2553.3,2552.8,0.78329]
[1748625239084,3.99105,2553.0,2552.9,4.715]
[1748625239279,3.2078,2553.0,2552.9,5.49827]
[1748625239678,3.99104,2553.0,2552.9,4.715]
[1748625239878,0.78327,2552.9,2552.8,0.78328]
[1748625240081,2.3501,2552.9,2552.8,5.49828]
[1748625240579,3.2078,2553.0,2552.9,0.78327]
[1748625240985,3.2078,2553.0,2552.9,3.16687]
[1748625241681,3.2078,2553.0,2552.9,8.16687]
[1748625241879,3.2078,2553.3,2553.2,0.78318]
[1748625242079,3.2078,2553.3,2553.2,5.49818]
[1748625242384,0.0058705,2553.4,2553.3,0.78314]
[1748625242585,0.0058705,2553.4,2553.3,2.09884]
[1748625243481,0.0058705,2553.4,2553.3,7.09884]
[1748625244082,0.0058705,2553.4,2553.3,2.09884]
[1748625244387,0.0058705,2553.4,2553.3,0.78314]
[1748625244589,0.0058705,2553.4,2553.3,5.49814]
[1748625245690,0.0058705,2553.4,2553.1,39.478]
[1748625245986,4.2837705,2553.4,2553.3,0.78315]
[1748625246188,6.0546805,2553.4,2553.3,0.78315]
[1748625246590,6.0546805,2553.4,2553.3,5.49815]
[1748625246984,5.2715705,2553.4,2553.3,5.49815]
[1748625247690,6.6250705,2553.4,2553.3,5.49815]
[1748625247992,4.2837705,2553.4,2553.3,5.49815]
[1748625248200,3.2136705,2553.4,2553.3,5.49815]
[1748625248897,0.0058705,2553.4,2553.3,5.49815]
[1748625249388,0.0058705,2553.4,2553.3,10.49815]
[1748625249889,0.0058705,2553.4,2553.1,43.9361]
[1748625250093,0.0058705,2553.4,2553.2,6.024]
[1748625250295,0.0058705,2553.4,2553.2,6.80716]
[1748625250488,0.0058705,2553.4,2553.2,1.309]
[1748625250989,1.3154705,2553.4,2553.1,39.478]
[1748625251192,0.78314,2553.3,2553.2,4.715]
[1748625251682,2.09274,2553.3,2553.2,4.715]
[1748625254398,1.3096,2553.3,2552.6,8.66486882]
[1748625254694,0.78328,2552.9,2552.7,6.74253]
[1748625254900,3.2078,2553.1,2552.8,0.78328]
[1748625255103,4.5446,2553.1,2552.8,2.02748]
[1748625255297,4.5446,2553.1,2552.9,0.78327]
[1748625255501,3.2078,2553.1,2553.0,0.78324]
[1748625256093,1.79998,2553.2,2553.0,0.78324]
[1748625256401,1.0168,2553.2,2552.8,1.2442]
[1748625256702,1.0168,2553.2,2553.0,0.78322]
[1748625256896,0.78323,2553.1,2552.8,1.2442]
[1748625257096,0.78324,2553.0,2552.9,0.78324]
[1748625257599,0.78327,2552.9,2552.8,2.02747]
[1748625258304,0.78327,2552.9,2552.8,1.2442]
[1748625258805,0.7833,2552.8,2552.7,5.49833]
[1748625259109,0.7833,2552.8,2552.7,4.715]
[1748625259308,5.16599,2552.9,2552.4,5.45706882]
[1748625259506,0.78339,2552.5,2552.4,5.45706882]
[1748625259702,0.78338,2552.6,2552.4,10.95546882]
[1748625260007,0.78338,2552.6,2552.4,12.19916882]
[1748625260412,0.78339,2552.5,2552.4,11.41576882]
[1748625261007,0.78339,2552.5,2552.4,10.17206882]
[1748625261913,0.78339,2552.5,2552.4,5.45706882]